[Event "10th LCC FIDE Open 2018"]
[Site "London"]
[Date "2018.12.15"]
[Round "7"]
[White "Longson, Sarah N"]
[Black "Van Zyl-Rudd, Jack"]
[Result "0-1"]
[ECO "B00"]
[WhiteElo "2137"]
[BlackElo "2306"]
[Annotator "NA"]
[PlyCount "100"]
[EventDate "2018.12.09"]
[EventType "swiss"]
[EventCountry "ENG"]
[SourceTitle "playchess.com"]
[Source "ChessBase"]
[SourceQuality "1"]
[TimeControl "40/5400+30:1800+30"]

1. e4 {[%emt 0:00:00]} Nc6 {[%emt 0:00:35]} 2. Nf3 {[%emt 0:00:17]} d6 {[%emt 0:00:36]} 3. d4 {[%emt 0:00:32]} Nf6 {[%emt 0:00:07]} 4. Nc3 {[%emt 0:00:14]} g6 {[%emt 0:00:37]} 5. d5 {[%emt 0:00:25]} Nb8 {[%emt 0:00:08] B00: Queen's Fianchetto Defence, Nimzowitsch Defence} 6. Bf4 {[%emt 0:00:30]} Bg7 {[%emt 0:00:20]} 7. Qd2 {[%emt 0:00:13]} O-O {[%emt 0:04:26]} 8. Bh6 {[%emt 0:00:44]} c6 {[%emt 0:05:39]} (8... e5 9. dxe6 Bxe6 10. Bxg7 Kxg7 11. O-O-O Nc6 12. h3 Re8 13. g4 a6 14. Bg2 {½-½ (47) Giri,A (2782)-Duda,J (2737) Dortmund 2018}) 9. Bxg7 {[%emt 0:00:42]} Kxg7 {[%emt 0:00:08]} 10. O-O-O {[%emt 0:01:03]} Qa5 {[%emt 0:05:15]} 11. Kb1 {[%emt 0:01:37]} Na6 $146 {[%emt 0:02:51]} ({Predecessor:} 11... b5 12. dxc6 Nxc6 13. Qe3 Be6 {0-1 (50) Ganerdene,S (2232)-Ozenir,E (2377) Ahmedabad 2017}) 12. Bxa6 {[%emt 0:07:54]} Qxa6 {[%emt 0:02:52]} 13. h3 {[%emt 0:01:10]} c5 {[%emt 0:14:42]} 14. e5 {[%emt 0:02:47]} dxe5 {[%emt 0:01:57]} 15. Nxe5 {[%emt 0:00:14]} b5 {[%emt 0:03:46]} 16. d6 {[%emt 0:08:15]} ({White should play} 16. Rhe1 $16) 16... b4 {[%emt 0:28:08]} 17. dxe7 {[%emt 0:30:30]} Re8 {[%emt 0:00:01]} 18. Ne2 {[%emt 0:02:24]} (18. Ng4 $1 $11 Bxg4 19. hxg4 bxc3 20. Qxc3) 18... Be6 {[%emt 0:00:51]} 19. b3 {[%emt 0:00:43]} Ne4 {[%emt 0:00:47]} 20. Qd3 {[%emt 0:02:14]} Qxd3 {[%emt 0:04:14]} 21. Nxd3 {[%emt 0:00:09]} c4 {[%emt 0:00:18]} 22. bxc4 {[%emt 0:05:10]} Bxc4 {[%emt 0:00:05]} 23. Rhe1 {[%emt 0:04:53]} ({Avoid the trap} 23. f3 $2 Bxd3 24. cxd3 Nf2 $19 {[%mdl 64] Double Attack}) 23... Rxe7 {[%emt 0:01:26]} 24. f3 {[%emt 0:02:24]} Bxd3 {[%emt 0:00:49]} 25. cxd3 {[%emt 0:01:22]} Nc5 $15 {[%emt 0:05:12]} 26. Nc1 {[%emt 0:07:26]} Rd7 {[%emt 0:00:55]} 27. d4 {[%emt 0:06:45]} Na4 {[%emt 0:03:06]} 28. Rd2 {[%emt 0:01:20]} Nb6 {[%emt 0:04:19]} 29. Nb3 {[%emt 0:01:52]} a5 {[%emt 0:01:44]} 30. Nc5 Rd5 {[%emt 0:00:30]} 31. Re7 Kf6 {[%emt 0:00:30]} 32. Rc7 Rc8 {[%emt 0:00:30]} 33. Ne4+ Kg7 {[%emt 0:00:30]} 34. Rdc2 Rxc7 {[%emt 0:00:30]} 35. Rxc7 Rxd4 {[%emt 0:00:30]} 36. Ng5 Rd7 {[%emt 0:00:30]} 37. Rc6 Nd5 {[%emt 0:00:30]} 38. Rc5 a4 {[%emt 0:00:30]} 39. Ne4 f5 {[%emt 0:00:30]} 40. Ng5 Nc3+ {[%emt 0:00:30]} 41. Kc2 Nxa2 {[%emt 0:30:30]} 42. Ne6+ Kf6 {[%emt 0:00:30]} 43. Nf4 b3+ {[%emt 0:00:30]} 44. Kb2 Rd2+ {[%emt 0:00:30]} 45. Ka3 Rc2 {[%emt 0:00:30]} 46. Ra5 Nc3 {[%emt 0:00:30]} 47. Ra6+ Ke5 {[%emt 0:00:30]} 48. Nd3+ Kd4 {[%emt 0:00:30]} 49. Rd6+ Ke3 {[%emt 0:00:30]} 50. Rd7 Rd2 {[%emt 0:00:30]} 0-1

[Event "10th LCC FIDE Open 2018"]
[Site "London"]
[Date "2018.12.15"]
[Round "7"]
[White "Menzies, Colin"]
[Black "Marzano, Carlo"]
[Result "1/2-1/2"]
[ECO "A09"]
[WhiteElo "2132"]
[BlackElo "2222"]
[Annotator "NA"]
[PlyCount "67"]
[EventDate "2018.12.09"]
[EventType "swiss"]
[EventCountry "ENG"]
[SourceTitle "playchess.com"]
[Source "ChessBase"]
[SourceQuality "1"]
[TimeControl "40/5400+30:1800+30"]

1. Nf3 {[%emt 0:00:33]} d5 {[%emt 0:00:00]} 2. c4 {[%emt 0:00:13]} dxc4 {[%emt 0:00:00]} 3. e3 {[%emt 0:00:06]} Nf6 {[%emt 0:00:14]} 4. Bxc4 {[%emt 0:00:28]} e6 {[%emt 0:00:24] LiveBook: 283 Games} 5. O-O {[%emt 0:00:39] A09: Réti Opening: 1 Nf3 d5 2 c4} (5. b3 c5 6. Bb2 Nc6 7. O-O Be7 8. d4 cxd4 9. Nxd4 Nxd4 10. Bxd4 O-O 11. Be2 b6 12. Nc3 Bb7 {½-½ (12) Grachev,B (2626)-Lysyj,I (2631) Sochi 2018}) 5... a6 {[%emt 0:00:27]} 6. Qc2 {[%emt 0:01:12]} b5 $146 {[%emt 0:04:26]} ({Predecessor:} 6... c5 7. d4 b5 8. Be2 Nbd7 9. a4 b4 10. Rd1 Bb7 11. Nbd2 Rc8 12. Nc4 Qc7 {0-1 (42) Arcusa,M (1903)-Humeau,C (2203) Tournefeuille 2009}) 7. Be2 {[%emt 0:00:45]} c5 {[%emt 0:01:59]} 8. a4 {[%emt 0:00:32]} b4 {[%emt 0:00:24]} 9. d3 {[%emt 0:00:50]} Bb7 {[%emt 0:02:04]} 10. Nbd2 {[%emt 0:02:17]} Be7 {[%emt 0:02:14]} 11. Nc4 {[%emt 0:01:10]} O-O {[%emt 0:02:23]} 12. h3 {[%emt 0:03:04]} Qc7 {[%emt 0:01:44]} 13. e4 {[%emt 0:04:32]} Nc6 {[%emt 0:04:45]} 14. Be3 {[%emt 0:03:11]} Rfd8 {[%emt 0:04:33]} 15. Rac1 {[%emt 0:07:10]} Rac8 {[%emt 0:05:54]} 16. g3 {[%emt 0:07:04]} Nd7 {[%emt 0:05:21]} 17. Bf4 {[%emt 0:07:14]} e5 {[%emt 0:00:16]} 18. Be3 {[%emt 0:01:03]} Nf8 {[%emt 0:02:11]} 19. Ncd2 {[%emt 0:09:42]} Ne6 {[%emt 0:18:53]} 20. Nb3 {[%emt 0:04:38]} Qb8 {[%emt 0:00:26]} 21. Qb1 {[%emt 0:06:59]} Ncd4 {[%emt 0:01:30]} 22. Nfxd4 {[%emt 0:03:00]} Nxd4 {[%emt 0:02:39]} 23. Bxd4 {[%emt 0:03:04]} cxd4 $11 {[%emt 0:00:18]} 24. Na5 {[%emt 0:03:38]} Rxc1 {[%emt 0:08:08]} 25. Rxc1 {[%emt 0:03:55]} Rc8 {[%emt 0:00:26]} 26. Bg4 {[%emt 0:04:18]} Rc5 {[%emt 0:10:18]} 27. Rxc5 {[%emt 0:04:18]} Bxc5 {[%emt 0:00:03]} 28. Qc2 {[%emt 0:00:38]} Bb6 {[%emt 0:03:10]} 29. Nxb7 {[%emt 0:01:08]} Qxb7 {[%emt 0:00:03]} 30. Bc8 {[%emt 0:00:16]} Qa8 {[%emt 0:15:10]} 31. Qc4 a5 {[%emt 0:00:30]} 32. Kh2 Qb8 {[%emt 0:00:30]} 33. Qc6 Kf8 {[%emt 0:00:30]} 34. b3 1/2-1/2

[Event "10th LCC FIDE Open 2018"]
[Site "London"]
[Date "2018.12.15"]
[Round "7"]
[White "Johnson, Daniel"]
[Black "Ethelontis, Alexandros N"]
[Result "1-0"]
[ECO "E32"]
[WhiteElo "2111"]
[BlackElo "2187"]
[Annotator "NA"]
[PlyCount "157"]
[EventDate "2018.12.09"]
[EventType "swiss"]
[EventCountry "ENG"]
[SourceTitle "playchess.com"]
[Source "ChessBase"]
[SourceQuality "1"]
[TimeControl "40/5400+30:1800+30"]

1. d4 {[%emt 0:09:42]} e6 {[%emt 0:00:00]} 2. c4 {[%emt 0:00:12]} Nf6 {[%emt 0:00:03]} 3. Nc3 {[%emt 0:00:14]} Bb4 {[%emt 0:00:08]} 4. Qc2 {[%emt 0:00:07]} Nc6 {[%emt 0:00:17]} 5. Nf3 {[%emt 0:00:44]} d6 {[%emt 0:00:18]} 6. g3 {[%emt 0:05:19]} O-O {[%emt 0:00:58]} 7. Bg2 {[%emt 0:01:25]} e5 {[%emt 0:01:34]} 8. dxe5 {[%emt 0:03:45] E32: Nimzo-Indian: Classical (4 Qc2): 4...0-0} (8. d5 Ne7 9. O-O a6 10. a3 Bc5 11. Bg5 Ne8 12. b4 Ba7 13. e4 h6 14. Be3 f5 15. Bxa7 Rxa7 16. exf5 Bxf5 {½-½ (51) Nisipeanu,L (2674)-Ponomariov,R (2706) Dortmund 2016}) 8... dxe5 {[%emt 0:00:32]} 9. O-O {[%emt 0:01:14]} Bg4 {[%emt 0:07:33]} 10. Rd1 {[%emt 0:09:47]} Qe7 $146 {[%emt 0:03:11]} ({Predecessor:} 10... Qc8 11. Nd5 Nxd5 12. cxd5 Bxf3 13. dxc6 Bxg2 14. Kxg2 Bd6 15. Be3 b6 {½-½ (60) Flohr,S-Koenig,I Bournemouth/ Dorseth 1939}) 11. Nd5 {[%emt 0:04:01]} Nxd5 {[%emt 0:00:29]} 12. cxd5 {[%emt 0:00:35]} Bxf3 {[%emt 0:42:19]} 13. dxc6 {[%emt 0:02:27]} Bxc6 {[%emt 0:00:44]} 14. Bxc6 {[%emt 0:00:20]} bxc6 {[%emt 0:00:09]} 15. Qxc6 {[%emt 0:00:53]} Bd6 {[%emt 0:10:29]} 16. Be3 {[%emt 0:03:41]} f5 {[%emt 0:01:12]} 17. Rac1 {[%emt 0:02:41]} f4 {[%emt 0:02:57]} 18. Bc5 {[%emt 0:05:47]} Rad8 {[%emt 0:01:16]} 19. Bxd6 {[%emt 0:17:56]} cxd6 {[%emt 0:01:03]} 20. Qd5+ {[%emt 0:00:59]} Kh8 $14 {[%emt 0:03:41]} 21. Rc6 {[%emt 0:11:33]} Rf6 {[%emt 0:04:20]} 22. Rdc1 {[%emt 0:00:04]} h6 {[%emt 0:04:51]} 23. Rc7 {[%emt 0:03:38]} Rd7 {[%emt 0:01:02]} 24. Qa8+ {[%emt 0:01:43]} Kh7 {[%emt 0:01:22]} 25. Qxa7 {[%emt 0:03:04]} Rxc7 {[%emt 0:00:14]} 26. Rxc7 {[%emt 0:01:43]} Qf8 {[%emt 0:00:09]} 27. Qb7 {[%emt 0:03:30]} fxg3 {[%emt 0:01:42]} 28. hxg3 {[%emt 0:00:18]} h5 29. Rc8 {[%emt 0:00:30]} Qf7 30. Qxf7 {[%emt 0:00:30]} Rxf7 31. b4 {[%emt 0:00:30]} Rb7 32. a3 {[%emt 0:00:30]} Ra7 33. Rc3 {[%emt 0:00:30]} Kg6 34. b5 {[%emt 0:00:30]} Kf5 35. b6 {[%emt 0:00:30]} Rb7 36. Rb3 {[%emt 0:00:30]} Ke6 37. a4 {[%emt 0:00:30]} Kd7 38. a5 {[%emt 0:00:30]} Kc6 39. e4 {[%emt 0:00:30]} g5 40. Kf1 {[%emt 0:00:30]} Rb8 41. Rd3 {[%emt 0:30:30]} Ra8 42. Rd5 {[%emt 0:00:30]} Ra6 43. Ke2 {[%emt 0:00:30]} Ra8 44. Kf1 {[%emt 0:00:30]} Rd8 45. Rd1 {[%emt 0:00:30]} Kb5 46. Ra1 {[%emt 0:00:30]} Ka6 47. Ke2 {[%emt 0:00:30]} Rh8 48. Rd1 {[%emt 0:00:30]} Kb7 49. Rd5 {[%emt 0:00:30]} Rd8 50. f4 {[%emt 0:00:30]} exf4 51. gxf4 {[%emt 0:00:30]} Re8 52. Rxg5 {[%emt 0:00:30]} Rxe4+ 53. Kf3 {[%emt 0:00:30]} Ra4 54. Rxh5 {[%emt 0:00:30]} Kc6 55. Rg5 {[%emt 0:00:30]} Ra1 56. Kg4 {[%emt 0:00:30]} d5 57. b7 {[%emt 0:00:30]} Kxb7 58. Rxd5 {[%emt 0:00:30]} Kc6 59. Re5 {[%emt 0:00:30]} Kd6 60. Kf5 {[%emt 0:00:30]} Ra4 61. Re6+ {[%emt 0:00:30]} Kd7 62. Ra6 {[%emt 0:00:30]} Ra1 63. Kf6 {[%emt 0:00:30]} Rh1 64. Ra7+ {[%emt 0:00:30]} Kd6 65. Rg7 {[%emt 0:00:30]} Ra1 66. Rg5 {[%emt 0:00:30]} Ra4 67. Rf5 {[%emt 0:00:30]} Rc4 68. a6 {[%emt 0:00:30]} Ra4 69. Kg5 {[%emt 0:00:30]} Ke7 70. Rf6 {[%emt 0:00:30]} Ra1 71. Rb6 {[%emt 0:00:30]} Rg1+ 72. Kf5 {[%emt 0:00:30]} Ra1 73. Rb7+ {[%emt 0:00:30]} Kd6 74. a7 {[%emt 0:00:30]} Ra4 75. Kg5 {[%emt 0:00:30]} Ra1 76. Kf6 {[%emt 0:00:30]} Ra6 77. Rb6+ {[%emt 0:00:30]} Rxb6 78. a8=Q {[%emt 0:00:30]} Kc7+ 79. Kg5 {[%emt 0:00:30]} 1-0

[Event "10th LCC FIDE Open 2018"]
[Site "London"]
[Date "2018.12.15"]
[Round "7"]
[White "Englisch, Colya"]
[Black "Abbas, Daniel"]
[Result "1/2-1/2"]
[ECO "D34"]
[WhiteElo "2105"]
[BlackElo "2280"]
[Annotator "NA"]
[PlyCount "125"]
[EventDate "2018.12.09"]
[EventType "swiss"]
[EventCountry "ENG"]
[SourceTitle "playchess.com"]
[Source "ChessBase"]
[SourceQuality "1"]
[TimeControl "40/5400+30:1800+30"]

1. Nf3 {[%emt 0:00:00]} c5 {[%emt 0:00:00]} 2. g3 {[%emt 0:00:00]} Nc6 {[%emt 0:00:00]} 3. d4 {[%emt 0:00:13]} cxd4 {[%emt 0:00:08]} 4. Nxd4 {[%emt 0:00:28]} e6 {[%emt 0:01:04] LiveBook: 31 Games} 5. Bg2 {[%emt 0:00:58]} Nf6 {[%emt 0:09:42]} 6. O-O {[%emt 0:00:41]} Bc5 {[%emt 0:04:03]} 7. Nb3 {[%emt 0:01:04]} Be7 {[%emt 0:00:16]} 8. c4 {[%emt 0:01:55]} d5 {[%emt 0:05:19]} 9. cxd5 {[%emt 0:02:26]} exd5 {[%emt 0:00:18]} 10. Nc3 {[%emt 0:02:42]} Be6 {[%emt 0:02:09]} 11. Bg5 {[%emt 0:07:23]} O-O {[%emt 0:01:13]} 12. Nd4 {[%emt 0:08:29]} Bg4 {[%emt 0:07:45] D34: Tarrasch Defence: 6 g3 Nf6 7 Bg2 Be7} 13. Qa4 {[%emt 0:05:34]} Bd7 $146 {[%emt 0:04:00]} ({Predecessor:} 13... Qd7 14. Rfd1 Rfd8 15. Nb3 Be6 16. Bxf6 Bxf6 17. Nxd5 Bxd5 18. Bxd5 {1-0 (70) Vakhidov,T (2400)-Faizulaev,A (2382) Tashkent 2018}) 14. Rfd1 {[%emt 0:05:37]} h6 {[%emt 0:03:46]} 15. Be3 {[%emt 0:04:49]} Na5 {[%emt 0:12:22]} 16. Qc2 {[%emt 0:02:05]} Rc8 {[%emt 0:06:48]} 17. Nf5 {[%emt 0:03:33]} Bxf5 {[%emt 0:05:44]} 18. Qxf5 {[%emt 0:00:16]} Nc4 $16 {[%emt 0:01:19]} 19. Bd4 {[%emt 0:26:14]} Nxb2 {[%emt 0:08:20]} 20. Rdc1 {[%emt 0:01:27]} Nc4 {[%emt 0:04:15]} 21. Nxd5 {[%emt 0:03:06]} Nxd5 {[%emt 0:00:55]} 22. Bxd5 {[%emt 0:00:48]} b5 {[%emt 0:07:24]} 23. a4 {[%emt 0:06:28]} a6 {[%emt 0:02:40]} 24. axb5 {[%emt 0:00:49]} axb5 {[%emt 0:00:06]} 25. Qg6 {[%emt 0:08:23]} Bf6 {[%emt 0:01:38]} 26. Bxf6 {[%emt 0:00:13]} Qxf6 {[%emt 0:00:05]} 27. Qxf6 {[%emt 0:00:09]} gxf6 {[%emt 0:00:04]} 28. Ra7 {[%emt 0:01:05]} Nd6 {[%emt 0:00:19]} 29. Rxc8 {[%emt 0:00:32]} Nxc8 {[%emt 0:00:08]} 30. Rb7 {[%emt 0:00:50]} Nd6 {[%emt 0:00:04]} 31. Rb6 {[%emt 0:00:46]} Rd8 {[%emt 0:00:13]} 32. Bc6 {[%emt 0:01:21]} Kg7 {[%emt 0:00:14]} 33. Bxb5 {[%emt 0:01:36]} Nxb5 {[%emt 0:00:07]} 34. Rxb5 {[%emt 0:00:03]} Kg6 {[%emt 0:00:05]} 35. g4 {[%emt 0:00:52]} Rd2 {[%emt 0:00:16]} 36. e3 {[%emt 0:00:18]} Ra2 {[%emt 0:00:09]} 37. Kg2 {[%emt 0:00:34]} Rc2 {[%emt 0:00:15]} 38. h4 {[%emt 0:00:47]} Ra2 {[%emt 0:00:04]} 39. h5+ {[%emt 0:00:40]} Kg7 {[%emt 0:00:04]} 40. Kg3 {[%emt 0:00:20]} Ra4 {[%emt 0:00:06]} 41. f3 {[%emt 0:32:59]} Rc4 {[%emt 0:30:22]} 42. e4 {[%emt 0:00:45]} Ra4 {[%emt 0:00:05]} 43. Kf4 {[%emt 0:00:46]} Ra3 {[%emt 0:00:06]} 44. Rb2 {[%emt 0:00:00]} Rc3 {[%emt 0:00:00]} 45. Re2 {[%emt 0:00:00]} Ra3 {[%emt 0:00:00]} 46. Re3 {[%emt 0:00:00]} Ra5 {[%emt 0:00:00]} 47. Rd3 {[%emt 0:00:00]} Rb5 {[%emt 0:00:00]} 48. Kg3 {[%emt 0:00:00]} Rb2 {[%emt 0:00:00]} 49. Re3 {[%emt 0:00:00]} Ra2 {[%emt 0:00:00]} 50. f4 {[%emt 0:00:00]} Rb2 {[%emt 0:00:00]} 51. e5 {[%emt 0:00:00]} fxe5 {[%emt 0:00:00]} 52. fxe5 {[%emt 0:00:00]} Rb4 {[%emt 0:00:00]} 53. Kf3 {[%emt 0:00:00]} Ra4 {[%emt 0:00:00]} 54. Re4 {[%emt 0:00:00]} Ra1 {[%emt 0:00:00]} 55. Rc4 {[%emt 0:00:00]} Rf1+ {[%emt 0:00:00]} 56. Ke4 {[%emt 0:00:00]} Re1+ {[%emt 0:00:00]} 57. Kd5 {[%emt 0:00:00]} Rd1+ {[%emt 0:00:00]} 58. Rd4 {[%emt 0:00:00]} Re1 {[%emt 0:00:00]} 59. Rf4 {[%emt 0:00:00]} Ra1 {[%emt 0:00:02]} 60. Ke4 {[%emt 0:00:00]} Ra4+ {[%emt 0:02:24]} 61. Kf5 {[%emt 0:00:00]} Ra5 {[%emt 0:00:07]} 62. Rf1 {[%emt 0:02:03]} f6 {[%emt 0:08:11]} 63. Re1 {[%emt 0:00:31]} 1/2-1/2

[Event "10th LCC FIDE Open 2018"]
[Site "London"]
[Date "2018.12.15"]
[Round "7"]
[White "Seymour, Timothy P"]
[Black "Venkataramanan, T.S."]
[Result "1-0"]
[ECO "A13"]
[WhiteElo "2080"]
[BlackElo "2253"]
[Annotator "NA"]
[PlyCount "75"]
[EventDate "2018.12.09"]
[EventType "swiss"]
[EventCountry "ENG"]
[SourceTitle "playchess.com"]
[Source "ChessBase"]
[SourceQuality "1"]
[TimeControl "40/5400+30:1800+30"]

1. Nf3 {[%emt 0:00:00]} d5 {[%emt 0:00:38]} 2. e3 {[%emt 0:00:00]} Nf6 {[%emt 0:00:58]} 3. c4 {[%emt 0:00:00]} e6 {[%emt 0:00:40]} 4. b3 {[%emt 0:00:00]} a5 {[%emt 0:00:17] A13: English Opening: 1...e6} 5. Nc3 {[%emt 0:03:43]} Be7 {[%emt 0:03:04]} 6. Bb2 {[%emt 0:00:40]} O-O {[%emt 0:00:32]} 7. d4 {[%emt 0:02:28]} c5 $146 {[%emt 0:03:58]} ({Predecessor:} 7... b6 8. Bd3 Bb7 9. O-O Nbd7 10. cxd5 exd5 {1-0 (43) Naiditsch,A (2705)-Michalik,P (2557) Dubai 2014}) 8. cxd5 {[%emt 0:21:40]} exd5 {[%emt 0:00:37]} 9. Be2 {[%emt 0:02:47]} b6 {[%emt 0:01:21]} 10. O-O {[%emt 0:00:44]} Bb7 {[%emt 0:00:15]} 11. Rc1 {[%emt 0:06:17]} Nbd7 {[%emt 0:00:21]} 12. Bd3 {[%emt 0:01:20]} Rc8 {[%emt 0:01:02]} 13. Bf5 {[%emt 0:06:19]} Bd6 {[%emt 0:10:26]} 14. Nb5 {[%emt 0:10:37]} Bb8 {[%emt 0:00:33]} 15. dxc5 {[%emt 0:00:51]} Rxc5 {[%emt 0:03:53]} 16. Nc3 {[%emt 0:08:41]} Re8 {[%emt 0:15:03]} 17. Qd2 {[%emt 0:00:57]} Ne5 {[%emt 0:03:42]} 18. Nxe5 {[%emt 0:01:01]} Rxe5 {[%emt 0:01:16]} 19. Bh3 {[%emt 0:04:33]} Rh5 {[%emt 0:03:18]} 20. Ba3 $17 {[%emt 0:13:06]} (20. f4 $11) 20... Rxc3 {[%emt 0:05:21]} 21. Qxc3 {[%emt 0:05:36]} Ne4 {[%emt 0:00:29]} 22. Qd4 {[%emt 0:00:40]} Be5 {[%emt 0:28:21]} 23. Qd1 {[%emt 0:00:02]} Rxh3 {[%emt 0:01:40]} 24. gxh3 {[%emt 0:00:12]} Ng5 {[%emt 0:00:44]} 25. Qg4 {[%emt 0:01:33]} h5 {[%emt 0:01:54]} 26. Qxh5 {[%emt 0:01:59]} d4 {[%emt 0:02:56]} 27. f4 {[%emt 0:02:07]} Qd5 {[%emt 0:01:56]} 28. Rc8+ {[%emt 0:01:35]} Bxc8 {[%emt 0:00:44]} 29. Qxg5 {[%emt 0:00:03]} Bb7 {[%emt 0:04:34]} 30. fxe5 {[%emt 0:00:09]} dxe3 {[%emt 0:00:57]} 31. Rf3 {[%emt 0:01:11]} e2 {[%emt 0:01:15]} 32. Re3 {[%emt 0:02:47]} Qh1+ {[%emt 0:02:11]} 33. Kf2 {[%emt 0:00:01]} Qxh2+ {[%emt 0:00:37]} 34. Ke1 {[%emt 0:00:05]} Qh1+ {[%emt 0:00:09]} 35. Kxe2 {[%emt 0:00:26]} Qh2+ {[%emt 0:00:24]} 36. Ke1 {[%emt 0:00:45]} Qxa2 {[%emt 0:00:27]} 37. Rd3 {[%emt 0:01:16]} Qb1+ {[%emt 0:01:07]} 38. Kd2 {[%emt 0:00:09]} 1-0

[Event "10th LCC FIDE Open 2018"]
[Site "London"]
[Date "2018.12.15"]
[Round "7"]
[White "Price, Gwilym"]
[Black "Keetman, Maaike"]
[Result "1/2-1/2"]
[ECO "C06"]
[WhiteElo "2075"]
[BlackElo "2173"]
[Annotator "NA"]
[PlyCount "85"]
[EventDate "2018.12.09"]
[EventType "swiss"]
[EventCountry "ENG"]
[SourceTitle "playchess.com"]
[Source "ChessBase"]
[SourceQuality "1"]
[TimeControl "40/5400+30:1800+30"]

1. e4 {[%emt 0:00:00]} e6 {[%emt 0:00:00]} 2. d4 {[%emt 0:00:00]} d5 {[%emt 0:00:00]} 3. Nd2 {[%emt 0:00:00]} Be7 {[%emt 0:00:00]} 4. Ngf3 {[%emt 0:00:00]} Nf6 {[%emt 0:00:00]} 5. e5 {[%emt 0:00:02]} Nfd7 {[%emt 0:00:04]} 6. Bd3 {[%emt 0:00:16]} c5 {[%emt 0:00:08]} 7. c3 {[%emt 0:00:03]} Nc6 {[%emt 0:00:05]} 8. O-O {[%emt 0:00:14]} a5 {[%emt 0:00:05]} 9. Re1 {[%emt 0:05:05]} cxd4 {[%emt 0:01:13]} 10. cxd4 {[%emt 0:00:08]} Qb6 {[%emt 0:00:04]} 11. Nb1 {[%emt 0:05:35]} Nxd4 {[%emt 0:00:54]} 12. Nxd4 {[%emt 0:00:21]} Qxd4 {[%emt 0:00:07]} 13. Nc3 {[%emt 0:00:20]} Qb6 {[%emt 0:04:17]} 14. Qg4 {[%emt 0:02:15]} Bf8 {[%emt 0:08:17]} 15. Be3 {[%emt 0:09:05]} Qd8 {[%emt 0:02:11]} 16. Bd4 {[%emt 0:01:45]} g6 {[%emt 0:04:50]} 17. h4 {[%emt 0:17:33]} Nc5 {[%emt 0:10:45]} 18. Bb5+ {[%emt 0:07:52]} Bd7 {[%emt 0:00:34]} 19. Nxd5 {[%emt 0:00:23]} exd5 {[%emt 0:15:34]} 20. e6 {[%emt 0:10:28]} fxe6 {[%emt 0:04:19]} 21. Bxd7+ {[%emt 0:01:02]} Qxd7 {[%emt 0:00:45]} 22. Bxh8 {[%emt 0:00:14]} O-O-O {[%emt 0:00:16]} 23. Be5 {[%emt 0:03:26]} Bh6 {[%emt 0:02:27]} 24. Qd4 {[%emt 0:03:02]} b6 {[%emt 0:01:19]} 25. b4 {[%emt 0:05:06]} axb4 {[%emt 0:01:44]} 26. Qxb4 {[%emt 0:00:50]} Kb7 {[%emt 0:00:21]} 27. Rab1 {[%emt 0:01:53]} Qc6 {[%emt 0:02:53]} 28. Bd4 {[%emt 0:04:58]} Bf8 {[%emt 0:02:28]} 29. Bxc5 {[%emt 0:00:53]} Bxc5 {[%emt 0:00:40]} 30. Qg4 {[%emt 0:00:48]} Re8 {[%emt 0:07:48]} 31. Rbd1 {[%emt 0:02:32]} e5 {[%emt 0:02:53]} 32. Qg5 {[%emt 0:01:05]} Bd4 {[%emt 0:03:37]} 33. Rxd4 {[%emt 0:01:31]} exd4 {[%emt 0:00:27]} 34. Rxe8 {[%emt 0:00:06]} Qxe8 {[%emt 0:00:04]} 35. Qxd5+ {[%emt 0:00:05]} Ka6 {[%emt 0:02:32]} 36. Qxd4 {[%emt 0:00:12]} Qe1+ {[%emt 0:05:07]} 37. Kh2 {[%emt 0:00:02]} Qe2 {[%emt 0:00:09]} 38. Qa4+ {[%emt 0:02:21]} Kb7 {[%emt 0:00:07]} 39. Qd7+ {[%emt 0:00:03]} Ka6 {[%emt 0:00:18]} 40. Qa4+ {[%emt 0:00:04]} Kb7 {[%emt 0:00:03]} 41. Qd7+ {[%emt 0:30:04]} Ka6 {[%emt 0:30:01]} 42. Qf7 Qe4 {[%emt 0:00:30]} 43. Qxh7 1/2-1/2